bitfinex/quotes_ETHUSD_20260207
["timestamp","ask_amount","ask_price","bid_price","bid_amount"]
[1770430126592,0.2292009,2059.2,2058.4,2.66672286]
[1770430128084,0.2292009,2059.2,2058.2,0.04391958]
[1770430128085,0.002,2059.5,2058.6,2.66672286]
[1770430128287,0.002,2059.5,2058.8,2.66672286]
[1770430128517,0.002,2059.5,2058.9,3.88096347]
[1770430129010,0.002,2059.6,2059.0,2.66672286]
[1770430130420,0.002,2059.6,2059.2,2.66672286]
[1770430130729,0.002,2059.6,2059.1,1.21412267]
[1770430130730,0.002,2060.4,2059.3,2.66672286]
[1770430130922,0.002,2060.4,2059.5,2.66672286]
[1770430131411,0.002,2060.4,2059.4,0.26667229]
[1770430131412,2.83432253,2060.4,2059.4,0.26667229]
[1770430131619,2.83432253,2060.4,2059.1,3.88084553]
[1770430132186,2.83432253,2060.4,2059.1,1.21412267]
[1770430132616,2.83232253,2060.2,2058.8,7.52321355]
[1770430132818,2.83232253,2060.2,2058.8,4.85649069]
[1770430133894,2.83232253,2059.9,2058.8,1.21429959]
[1770430134101,2.83232253,2059.7,2058.7,1.4854157]
[1770430134622,1.21382792,2059.6,2058.7,1.4854157]
[1770430134822,4.04615045,2059.6,2058.7,0.27106424]
[1770430134995,2.83232253,2059.5,2058.7,0.27106424]
[1770430135196,2.83232253,2059.5,2058.6,1.21441157]
[1770430135423,1.21382792,2059.6,2058.7,1.21435785]
[1770430135631,1.21382792,2059.6,2058.6,1.21437876]
[1770430136420,4.04615045,2059.6,2058.4,4.85804195]
[1770430136623,4.04615045,2059.6,2058.2,2.66672286]
[1770430136624,2.83232253,2059.3,2058.2,1.21465154]
[1770430136800,2.83232253,2059.3,2058.1,1.21467151]
[1770430136993,2.83232253,2059.3,2058.1,1.21470472]
[1770430137198,0.04391958,2059.4,2057.8,0.27106424]
[1770430137199,2.83232253,2059.0,2058.0,1.21476411]
[1770430137426,2.83232253,2059.0,2058.1,1.21470552]
[1770430137596,3.11555478,2058.9,2057.8,0.27106424]
[1770430137928,2.83232253,2058.9,2058.2,1.2146468]
[1770430138102,2.83232253,2058.9,2058.1,1.21467667]
[1770430138409,2.83232253,2058.9,2058.0,1.21476542]
[1770430138726,2.83232253,2059.3,2057.9,4.8592427]
[1770430138932,0.29347225,2059.2,2058.0,0.63451376]
[1770430139692,0.29347225,2059.2,2058.3,0.001]
[1770430140304,2.10847091,2059.5,2058.3,2.66772286]
[1770430140624,2.10847091,2059.5,2058.4,3.88125842]
[1770430140814,2.83232253,2059.4,2058.4,1.21453556]
[1770430141200,2.10847091,2059.5,2058.4,1.21453556]
[1770430141399,3.12194674,2059.8,2058.5,3.27409064]
[1770430141701,0.28962421,2059.8,2058.5,3.27409064]
[1770430141918,0.002,2059.8,2058.5,3.27409064]
[1770430142114,1.21572526,2059.8,2058.5,3.27409064]
[1770430142422,4.04804779,2059.8,2058.5,3.27409064]
[1770430142627,4.04804779,2059.8,2058.6,1.21441756]
[1770430144102,1.21572526,2059.8,2058.6,3.88114042]
[1770430144309,2.83232253,2059.7,2058.7,0.93461785]
[1770430144516,2.83232253,2059.7,2058.6,1.21441756]
[1770430144915,1.21382792,2059.6,2058.6,1.21441756]
[1770430146039,4.02213309,2059.6,2058.6,1.21441756]
[1770430146245,2.80830517,2059.5,2058.5,1.21444185]
[1770430146448,0.40221331,2059.4,2058.5,1.21444185]
[1770430147423,1.21400475,2059.3,2058.3,1.21559456]
[1770430149921,1.61621787,2059.4,2058.3,1.21559456]
[1770430150317,1.61621787,2059.4,2058.3,3.96509454]
[1770430151247,3.37619661,2059.8,2058.4,2.74949998]
[1770430151420,1.21379817,2059.7,2058.4,2.74949998]
[1770430151619,1.21379817,2059.7,2058.5,1.21447656]
[1770430151838,3.98074668,2059.7,2058.5,1.21447656]
[1770430152018,0.002,2059.8,2058.6,2.74949998]
[1770430152942,1.21571879,2059.8,2058.6,2.74949998]
[1770430153135,0.002,2059.8,2058.7,0.39649765]
[1770430153335,0.002,2059.8,2058.7,3.14599763]
[1770430153850,0.002,2059.8,2059.0,2.74949998]
[1770430154444,0.002,2059.8,2059.2,2.79341956]
[1770430154743,0.002,2060.0,2059.2,2.79341956]
[1770430154948,0.002,2060.0,2059.4,2.74949998]
[1770430155318,0.002,2060.4,2059.4,2.74949998]
[1770430155521,0.002,2060.4,2059.6,2.74949998]
[1770430155828,0.002,2060.4,2059.7,3.96326897]
[1770430156017,0.002,2060.7,2059.7,3.96326897]
[1770430156214,0.002,2060.7,2059.8,0.8818345]
[1770430156825,0.002,2060.7,2059.9,2.74949998]
[1770430157131,0.002,2060.7,2059.8,0.8818345]
[1770430157556,0.002,2060.7,2059.8,3.63133448]
[1770430157846,0.002,2060.7,2060.0,1.21359223]
[1770430158023,0.002,2060.7,2060.1,0.88174611]
[1770430158222,0.002,2060.7,2060.2,2.74949998]
[1770430159847,0.002,2060.7,2060.3,1.21341552]
[1770430162030,0.002,2060.7,2060.2,4.85366208]
[1770430162420,0.002,2060.7,2059.2,4.85624453]
[1770430162421,2.76894851,2060.7,2059.2,4.85624453]
[1770430162622,2.76694851,2060.5,2059.9,1.21361174]
[1770430162843,2.76694851,2060.5,2060.0,1.21356187]
[1770430163049,2.76694851,2060.5,2059.8,4.8546344]
[1770430163050,2.76694851,2060.5,2059.9,1.21361792]
[1770430163272,2.76694851,2060.5,2059.6,4.85517096]
[1770430163453,3.07133285,2060.4,2059.8,1.2136823]
[1770430163623,3.07133285,2060.4,2059.4,4.85562331]
[1770430163822,3.07133285,2060.4,2059.6,1.2138241]
[1770430164026,3.98036403,2060.3,2059.4,1.2139458]
[1770430165233,3.98036403,2060.3,2060.0,0.001]
[1770430165435,0.91383312,2060.2,2060.0,0.001]
[1770430165757,3.68078163,2060.2,2060.0,0.001]
[1770430166635,3.98048183,2060.1,2060.0,0.001]
[1770430167152,3.98048183,2060.1,2059.8,0.001]
[1770430167352,3.98048183,2060.1,2059.4,1.2139458]
[1770430167553,0.97482421,2060.0,2059.4,1.2139458]
[1770430167861,2.76694851,2060.1,2059.3,1.49330112]
[1770430168231,2.76694851,2060.1,2059.3,1.21395916]
[1770430169048,2.76694851,2060.1,2058.9,0.001]
[1770430169049,1.21359223,2060.0,2058.9,0.001]
[1770430169374,3.98054074,2060.0,2058.9,0.001]
[1770430169677,2.76694851,2060.0,2058.9,0.001]
[1770430171155,3.98055411,2060.0,2058.9,0.001]
[1770430171364,4.86402079,2060.0,2058.9,0.89344046]
[1770430171758,2.76694851,2059.9,2058.9,0.001]
[1770430173261,2.09707228,2060.0,2058.9,0.001]
[1770430173262,2.09708826,2060.0,2058.9,0.001]
[1770430174561,4.85565604,2060.5,2058.9,0.001]
[1770430174562,2.76894851,2060.5,2058.9,2.75049998]
[1770430174861,2.76694851,2060.3,2058.9,2.75049998]
[1770430175362,1.21347441,2060.2,2059.0,1.21418164]
[1770430175544,3.98042292,2060.2,2059.0,1.21418164]
[1770430175740,4.86385498,2060.2,2059.1,0.88214082]
[1770430177362,3.65038057,2060.2,2059.1,0.88214082]
[1770430177533,4.86386162,2060.2,2059.2,1.21406371]
[1770430177734,3.98042956,2060.2,2059.2,1.21406371]
[1770430178365,1.21339568,2060.4,2059.2,3.90574739]
[1770430179444,2.57475252,2060.1,2059.1,0.001]
[1770430180666,2.57475252,2060.1,2059.1,1.21510897]
[1770430180867,2.57475252,2059.9,2059.1,1.82237735]
[1770430181762,3.78846258,2059.8,2059.1,1.82237735]
[1770430182087,3.78846258,2059.8,2059.1,0.60826838]
[1770430182390,2.80217264,2059.8,2059.1,0.60826838]
[1770430182554,2.80217264,2059.8,2059.1,0.001]
[1770430192763,0.37882269,2060.0,2059.1,0.001]
[1770430192967,1.21367251,2059.9,2059.1,0.001]
[1770430193368,3.78842503,2059.9,2059.1,0.001]
[1770430201006,3.78842503,2059.9,2058.9,0.01267748]
[1770430201007,2.57475252,2059.8,2058.9,0.01267748]
[1770430201290,2.57475252,2059.7,2058.6,2.69168368]
[1770430201493,2.57475252,2059.7,2058.8,1.21429666]
[1770430201691,2.57475252,2059.7,2058.9,1.21423783]
[1770430201894,2.92244397,2059.6,2058.9,1.82136204]
[1770430202091,3.47691451,2059.8,2058.9,1.82136204]
[1770430202399,0.002,2059.7,2059.3,0.001]
[1770430202588,2.57675252,2059.7,2058.9,1.82136204]
[1770430202903,2.57675252,2059.7,2059.0,0.001]
[1770430203070,3.79055213,2059.7,2059.0,0.001]
[1770430203395,4.7455106,2059.7,2059.0,0.66893825]
[1770430203592,0.002,2059.7,2059.0,0.66893825]
[1770430205484,0.002,2059.7,2059.1,1.21412267]
[1770430205809,0.002,2059.7,2059.0,1.8831162]
[1770430205810,2.57266784,2059.7,2059.0,1.8831162]
[1770430206206,2.57266784,2059.7,2059.0,0.66893825]
[1770430206502,2.57266784,2059.7,2059.0,1.88310276]
[1770430206703,2.57266784,2059.7,2059.1,0.67400583]
[1770430207005,0.002,2059.7,2059.1,0.67400583]
[1770430208674,2.52294656,2059.7,2059.0,1.21516451]
[1770430210806,3.73674795,2059.7,2059.0,0.001]
[1770430211713,0.002,2059.7,2059.0,2.54657309]
[1770430212812,0.002,2059.7,2059.1,1.21412267]
[1770430213105,0.002,2059.7,2059.2,0.86171865]
[1770430214207,0.002,2059.7,2059.3,2.54557309]
[1770430214408,0.002,2059.9,2059.3,2.54557309]
[1770430214777,0.002,2059.9,2059.4,1.2139458]
[1770430216485,0.002,2059.5,2059.4,1.2139458]
[1770430216794,0.002,2059.7,2059.6,1.21382792]
[1770430217010,0.002,2059.9,2059.6,1.21382792]
[1770430217313,0.002,2060.3,2059.7,2.54557309]
[1770430218892,0.002,2060.3,2059.9,2.54557309]
[1770430219219,0.002,2060.3,2060.0,0.37592832]
[1770430221107,0.002,2060.3,2060.1,1.21353332]
[1770430221821,0.002,2060.6,2060.2,2.54557309]
[1770430222021,0.002,2060.7,2060.2,2.54557309]
[1770430222319,0.002,2060.7,2060.1,1.21353332]
[1770430222320,0.004,2061.0,2060.1,1.21353332]
[1770430222484,2.52095452,2061.1,2060.2,0.64435949]
[1770430222689,0.004,2061.0,2060.2,3.18993258]
[1770430222917,0.004,2061.0,2060.3,2.54557309]
[1770430223212,7.96e-06,2061.1,2060.5,2.54557309]
[1770430223391,0.00400796,2061.1,2060.5,2.54557309]
[1770430223594,0.00400796,2061.1,2060.7,2.54557309]
[1770430224298,0.004,2061.0,2060.6,0.37589297]
[1770430224521,0.004,2061.0,2060.4,1.21335662]
[1770430225516,0.004,2061.0,2060.4,3.75892971]
[1770430225720,0.004,2061.0,2060.4,1.21335662]
[1770430228107,0.004,2061.0,2060.5,2.54557309]
[1770430229196,0.002,2060.9,2060.5,2.54557309]
[1770430229522,0.002,2060.9,2060.6,2.92146606]
[1770430229896,0.002,2060.9,2060.7,1.21317998]
[1770430230092,0.002,2060.9,2060.8,2.54557309]
[1770430230723,0.002,2060.9,2060.7,1.21317998]
[1770430230894,0.006,2060.9,2060.7,1.21317998]
[1770430231095,1e-08,2061.1,2060.7,2.59721147]
[1770430231922,1e-08,2061.1,2060.8,2.54557309]
[1770430232095,1e-08,2061.1,2060.9,3.75863534]
[1770430232525,0.002,2061.4,2061.0,2.54557309]
[1770430233099,1e-08,2061.6,2061.0,2.54557309]
[1770430233421,1e-08,2061.6,2061.1,0.37586353]
[1770430233794,1e-08,2061.6,2060.9,1.21306225]
[1770430234009,1e-08,2061.6,2060.9,2.54557309]
[1770430234230,0.002,2062.0,2061.0,2.58949267]
[1770430235409,0.002,2062.0,2061.4,2.54557309]
[1770430235621,0.002,2062.4,2061.7,2.54557309]
[1770430235948,0.002,2062.6,2061.9,2.60323095]
[1770430236239,0.002,2062.6,2062.0,2.55931137]
[1770430236534,0.002,2062.6,2061.9,1.21247393]
[1770430240710,0.002,2062.6,2062.0,2.55931137]
[1770430241431,0.002,2062.4,2062.0,2.55931137]
[1770430241729,0.002,2062.4,2062.1,0.37717853]
[1770430242108,0.002,2062.4,2061.9,1.21247393]
[1770430242510,0.002,2062.4,2062.0,2.55931137]
[1770430242919,0.002,2062.6,2062.0,2.55931137]
[1770430243324,0.002,2062.6,2061.9,1.21247393]
[1770430244013,0.002,2062.6,2062.0,2.55931137]
[1770430244221,0.002,2062.6,2062.1,0.37717853]
[1770430244750,0.002,2062.6,2062.1,1.58950408]
[1770430245919,0.002,2062.6,2062.1,1.21232555]
[1770430247509,0.002,2062.6,2061.9,4.84988068]
[1770430248435,0.002,2062.6,2062.0,0.01393697]
[1770430249739,0.002,2062.6,2062.1,1.21235633]
[1770430252956,2.67861346,2062.6,2062.0,1.2123697]
[1770430253127,2.67661346,2062.4,2062.0,1.2123697]
[1770430253329,2.67661346,2062.4,2061.9,1.21242741]
[1770430253571,2.67861346,2062.4,2061.9,1.21242741]
[1770430254163,0.002,2062.6,2061.4,2.55931137]
[1770430254447,0.002,2062.6,2061.3,4.89516015]
[1770430254448,0.002,2062.6,2061.6,2.55931137]
[1770430254659,0.002,2062.6,2061.8,2.55931137]
[1770430255147,1.21177315,2063.1,2061.8,2.55931137]
[1770430255316,3.88836019,2063.2,2061.8,2.55931137]
[1770430256114,2.67661346,2063.2,2062.0,2.55931137]
[1770430256322,2.67661346,2063.2,2062.2,2.55931137]
[1770430257866,3.88832731,2063.2,2062.2,2.55931137]
[1770430258226,2.67661346,2063.2,2062.3,1.21223876]
[1770430259237,3.88833272,2063.2,2062.3,1.21223876]
[1770430259438,2.67661346,2063.1,2062.3,1.21223876]
[1770430259639,3.55010855,2063.1,2062.4,0.86205052]
[1770430259836,3.88825299,2063.4,2062.4,0.86205052]
[1770430260035,1.21163953,2063.4,2062.4,0.86205052]
[1770430260256,2.67661346,2063.3,2062.4,0.86205052]
[1770430260457,2.67661346,2063.3,2062.5,1.21212121]
[1770430260666,4.76192764,2063.3,2062.5,2.64517736]
[1770430263166,2.67661346,2063.2,2062.5,2.64517736]
[1770430263473,2.67661346,2063.2,2061.8,4.84999748]
[1770430263474,2.67661346,2062.9,2061.5,2.55931137]
[1770430263769,2.67661346,2063.1,2062.5,1.21211391]
[1770430263971,0.26766135,2063.0,2062.3,1.21219699]
[1770430264145,2.94427481,2063.0,2062.4,1.21216013]
[1770430265043,2.08531418,2063.3,2062.5,1.21209019]
[1770430265044,4.76192764,2063.3,2062.5,1.21209019]
[1770430265370,1.21376869,2063.1,2062.3,1.21323876]
[1770430266369,3.71040156,2063.1,2062.3,1.21323876]
[1770430266764,2.49663287,2063.0,2062.3,1.21323876]
[1770430267765,3.70851541,2063.0,2062.3,0.001]
[1770430267963,0.85577208,2062.9,2062.3,0.001]
[1770430268568,3.70846772,2063.0,2062.3,0.001]
[1770430269447,2.57088743,2062.9,2062.3,0.001]
[1770430270160,3.78277494,2062.9,2062.3,0.001]
[1770430270670,2.57088743,2062.8,2062.3,9.357e-05]
[1770430271768,1.21188751,2062.9,2062.3,9.357e-05]
[1770430272071,0.60594322,2062.8,2062.3,9.357e-05]
[1770430272471,0.002,2063.1,2062.3,2.61291804]
[1770430272672,0.002,2063.1,2062.5,2.61282447]
[1770430275061,0.002,2063.1,2062.6,1.21206244]
[1770430275258,0.002,2063.1,2062.5,1.21210189]
[1770430275458,0.002,2063.1,2062.5,3.82492636]
[1770430275665,0.002,2063.1,2062.6,0.86735134]
[1770430276578,2.57288743,2063.1,2062.6,0.86735134]
[1770430276760,2.57288743,2063.1,2062.4,1.21213342]
[1770430276963,2.57288743,2063.1,2062.4,1.21216987]
[1770430277178,1.21182743,2063.0,2062.3,9.357e-05]
[1770430277477,2.57088743,2062.9,2062.3,9.357e-05]
[1770430277648,0.37827149,2062.8,2062.3,9.357e-05]
[1770430277853,1.21182743,2063.0,2062.3,9.357e-05]
[1770430278181,1e-08,2063.5,2062.7,2.61282447]
[1770430278354,0.002,2062.9,2062.6,0.001]
[1770430278563,0.002,2062.9,2062.6,2.61382447]
[1770430278759,1e-08,2063.5,2062.8,2.61282447]
[1770430279155,1e-08,2063.5,2063.0,2.61282447]
[1770430281169,1e-08,2063.5,2063.2,2.61282447]
[1770430281675,0.002,2063.9,2063.2,2.61282447]
[1770430283479,0.002,2063.9,2063.4,2.61282447]
[1770430283664,0.002,2063.9,2063.5,0.38244757]
[1770430284183,0.002,2063.9,2063.5,2.99527204]
[1770430285097,0.002,2064.1,2063.6,2.61282447]
[1770430285386,1e-08,2064.3,2063.8,2.61282447]
[1770430286473,1e-08,2064.3,2063.7,1.21141638]
[1770430286775,1e-08,2064.3,2063.7,2.60122966]
[1770430287156,2.57088744,2064.3,2063.2,1.21167843]
[1770430287456,2.57088744,2064.3,2062.9,2.61282447]
[1770430287457,3.78206905,2064.1,2063.0,1.21182743]
[1770430287881,1.2111486,2064.2,2063.1,2.61282447]
[1770430288257,3.82595561,2064.2,2063.1,2.61282447]
[1770430288473,0.86702996,2064.1,2063.1,3.48004361]
[1770430289590,0.86702996,2064.1,2063.3,1.21165123]
[1770430289591,2.07825677,2064.1,2063.3,1.21165123]
[1770430290085,1.21109988,2064.3,2063.4,0.04836484]
[1770430290274,1.21109988,2064.3,2063.3,3.87284054]
[1770430290589,3.78198731,2064.3,2063.3,1.21165123]
[1770430291572,0.002,2064.1,2063.2,4.84768218]
[1770430292079,0.002,2064.1,2063.2,7.46050665]
[1770430292253,0.002,2064.1,2063.4,2.61282447]
[1770430293980,0.002,2064.1,2063.5,1.2115338]
[1770430294697,0.002,2064.1,2063.4,1.21157296]
[1770430294894,0.002,2064.1,2063.3,1.21160741]
[1770430295408,2.57288743,2064.1,2063.2,1.21266277]
[1770430295573,0.25728874,2064.0,2063.2,1.21266277]
[1770430296076,0.25728874,2064.0,2063.3,1.21163903]
[1770430296802,0.002,2064.1,2063.4,2.43827166]
[1770430298885,0.002,2064.1,2063.5,1.2115338]
[1770430300605,0.002,2064.1,2063.4,1.21156657]
[1770430300990,0.002,2064.1,2063.2,1.21270996]
[1770430301975,0.002,2064.1,2063.3,2.43827166]
[1770430302174,0.002,2064.1,2063.4,0.36509816]
[1770430302376,0.002,2064.1,2063.4,2.80336982]
[1770430303311,0.002,2064.1,2063.5,1.2115338]
[1770430303484,0.002,2064.1,2063.6,2.43827166]
[1770430305278,0.002,2064.1,2063.8,2.43827166]
[1770430305478,0.002,2064.1,2063.9,0.3649688]
[1770430305982,0.002,2064.1,2063.9,2.80324046]
[1770430306306,0.002,2064.1,2063.9,0.3649688]
[1770430306510,0.002,2064.1,2063.7,1.21141638]
[1770430307523,0.002,2064.1,2063.8,2.43827166]
[1770430308296,1.16481797,2064.8,2063.8,2.43827166]
[1770430308719,2.58012505,2064.7,2063.7,1.21141638]
[1770430308992,2.58012505,2064.7,2063.7,3.64968804]
[1770430309188,0.85879854,2064.7,2063.8,0.84953536]
[1770430309402,1.21078109,2064.8,2063.8,0.84953536]
[1770430309605,7.4230184,2064.9,2063.9,1.21129899]
[1770430310216,3.79083743,2064.9,2063.9,3.64957065]
[1770430311919,1.21071238,2064.9,2064.0,2.43827166]
[1770430312819,1.21069516,2065.0,2064.0,2.43827166]
[1770430313019,1.21069516,2065.0,2064.1,2.80322872]
[1770430314024,4.84248309,2065.1,2064.2,1.21112295]
[1770430314818,2.58012505,2065.0,2064.2,1.21112295]
[1770430315025,2.62404463,2065.0,2064.1,1.21117075]
[1770430315512,4.84248309,2065.1,2064.1,1.21117944]
[1770430315825,2.58012505,2064.9,2064.2,0.60560496]
[1770430316240,1.81600692,2065.0,2064.3,1.21106428]
[1770430316415,1.21065698,2065.0,2064.3,1.21106428]
[1770430316611,3.79076518,2065.1,2064.3,1.21106428]
[1770430317002,1.21064013,2065.1,2064.3,1.21106428]
[1770430317301,2.58012505,2065.0,2064.2,0.60560496]
[1770430317521,2.58012505,2065.0,2064.1,1.21217506]
[1770430317927,0.002,2064.8,2064.1,1.21217506]
[1770430318399,0.002,2064.8,2064.1,0.001]
[1770430320447,3.79294114,2064.8,2064.1,0.001]
[1770430320807,2.62404463,2064.7,2064.1,0.001]
[1770430321023,2.96381112,2064.6,2064.1,0.001]
[1770430321228,0.38368607,2064.6,2064.1,0.001]
[1770430321430,3.79294114,2064.8,2064.1,0.001]
[1770430321870,2.62404463,2064.7,2064.1,0.001]
[1770430322362,1.2108883,2064.6,2064.1,0.001]
[1770430322565,3.79101335,2064.6,2064.1,0.001]
[1770430323142,1.2108883,2064.6,2064.1,0.001]
[1770430323448,3.1855692,2064.5,2064.1,0.001]
[1770430323753,3.1855692,2064.5,2063.9,0.001]
[1770430324793,1.21100561,2064.4,2063.9,0.001]
[1770430325984,3.75342207,2064.4,2063.9,0.001]
[1770430327566,2.54241646,2064.3,2063.9,0.001]
[1770430327889,0.37534221,2064.2,2063.9,0.001]
[1770430328663,1.58651483,2064.2,2063.9,0.001]
[1770430329583,1.58651483,2064.2,2063.9,0.0001079]
[1770430330685,1.58651483,2064.2,2064.1,0.001]
[1770430330888,1.58851483,2064.2,2063.9,0.0001079]
[1770430331191,0.64328784,2064.1,2063.5,0.001]
[1770430331895,2.34028485,2064.0,2063.5,0.001]
[1770430332070,2.38420443,2064.0,2063.2,0.001]
[1770430332972,1.21129899,2063.9,2063.2,0.001]
[1770430333157,0.71808322,2063.8,2063.2,0.001]
[1770430334366,3.05836807,2063.8,2063.2,0.001]
[1770430335090,0.71808322,2063.8,2063.2,2.46775126]
[1770430335387,1.92947246,2063.8,2063.2,3.67944189]
[1770430337093,1.21126734,2064.0,2063.3,2.46675126]
[1770430337263,0.64328784,2064.1,2063.2,0.001]
[1770430337462,1.21122785,2064.1,2063.2,0.001]
[1770430337661,1.21122785,2064.1,2063.2,2.46775126]
[1770430338861,1.58850637,2064.2,2063.2,2.46775126]
[1770430339879,3.92879122,2064.2,2063.3,1.21165123]
[1770430340081,1.58850637,2064.2,2063.3,3.67840249]
[1770430340267,1.58850637,2064.2,2063.4,0.85260074]
[1770430342205,1.21118162,2064.1,2063.4,2.06414777]
[1770430343711,1.21118162,2064.1,2063.5,0.001]
[1770430344072,2.34028485,2063.6,2062.6,0.001]
[1770430344403,2.34028485,2063.9,2062.6,1.21303325]
[1770430344576,2.34028485,2063.9,2062.6,1.21301858]
[1770430344789,1.6627801,2064.0,2063.1,3.67849608]
[1770430345004,1.6627801,2064.0,2063.2,1.211707]
[1770430345176,0.52142466,2063.9,2063.2,0.85256636]
[1770430345376,3.55146647,2064.1,2063.3,1.21161957]
[1770430345901,2.34028485,2064.0,2063.2,1.21168736]
[1770430346198,1.21129899,2063.9,2063.0,1.21182743]
[1770430346396,1.21129899,2063.9,2063.1,2.46675126]
[1770430348200,4.84479737,2064.1,2063.2,1.21170996]
[1770430348402,0.72310018,2064.0,2063.3,0.85253011]
[1770430349487,1.21315396,2064.2,2063.4,2.46675126]
[1770430350505,0.002,2064.2,2063.5,1.2115338]
[1770430350901,0.002,2064.2,2063.4,3.67831577]
[1770430351107,0.002,2064.2,2063.4,3.67833649]
[1770430356613,0.002,2064.2,2063.5,0.001]
[1770430356810,0.002,2064.2,2063.5,0.85359164]
[1770430357116,0.002,2064.0,2063.5,0.85359164]
[1770430357296,0.002,2064.0,2063.5,2.06509796]
[1770430359414,0.002,2064.0,2063.5,4.372611]
[1770430360217,0.002,2064.0,2063.6,2.30751304]
[1770430360416,0.002,2064.0,2063.6,3.22940926]
[1770430361820,0.002,2064.0,2063.6,4.44087006]
[1770430361994,0.002,2064.0,2063.7,2.30751304]
[1770430363000,0.002,2064.0,2063.5,0.001]
[1770430363001,2.46336576,2064.0,2063.5,0.001]
[1770430363205,2.70770234,2063.9,2063.5,0.001]
[1770430364116,1.21135768,2063.8,2063.5,0.001]
[1770430364899,3.91904726,2063.9,2063.5,0.001]
[1770430367535,2.46136576,2063.8,2063.5,0.00010817]
[1770430367701,0.39190473,2063.7,2063.3,0.001]
[1770430367902,2.85327049,2063.7,2063.3,0.001]
[1770430368722,0.39190473,2063.7,2063.3,0.001]
[1770430369096,0.39190473,2063.7,2063.3,0.00010827]
[1770430369729,1.6033559,2063.7,2063.3,0.00010827]
[1770430369908,0.64488266,2063.6,2063.3,0.00010827]
[1770430371130,1.4576633,2063.9,2063.3,2.30762131]
[1770430374103,1.4576633,2063.9,2063.3,0.00010827]
[1770430374104,2.46136576,2063.8,2063.3,0.00010827]
[1770430374309,1.4576633,2063.9,2063.3,0.00010827]
[1770430374512,0.87660064,2063.8,2063.3,0.00010827]
[1770430377401,1.21141638,2063.7,2063.3,0.00010827]
[1770430378005,1.21141638,2063.7,2063.2,0.001]
[1770430378207,3.67278214,2063.7,2063.2,0.001]
[1770430378408,2.46136576,2063.6,2063.2,0.001]
[1770430378608,0.36727821,2063.5,2063.2,0.001]
[1770430379826,1.21159251,2063.4,2063.2,0.001]
[1770430381922,1.21159251,2063.4,2063.0,0.001]
[1770430382434,3.67295827,2063.4,2063.0,0.001]
[1770430382741,1.21159251,2063.4,2063.3,0.001]
[1770430382944,2.0635345,2063.4,2063.3,0.001]
[1770430383148,2.0635345,2063.4,2063.0,0.001]
[1770430384140,2.0635345,2063.4,2063.0,0.00010869]
[1770430385136,2.06353811,2063.4,2063.0,2.30762173]
[1770430385643,2.06353811,2063.4,2063.0,0.00010869]
[1770430386250,0.69117081,2063.3,2063.0,0.00010869]
[1770430387223,2.26429172,2063.2,2062.6,0.001]
[1770430387428,0.04391958,2062.9,2062.4,0.001]
[1770430387736,2.26429172,2062.9,2062.4,0.001]
[1770430388149,2.16599565,2063.2,2062.4,2.25232353]
[1770430388313,0.28571665,2063.1,2062.4,2.25232353]
[1770430388516,1.21159251,2063.4,2062.6,2.25132353]
[1770430390245,0.002,2063.5,2062.8,2.25132353]
[1770430390455,0.002,2063.5,2063.2,2.25132353]
[1770430391233,0.002,2063.7,2063.2,2.25132353]
[1770430391439,0.002,2063.7,2063.4,2.25132353]
[1770430392218,0.002,2063.7,2063.5,1.2115338]
[1770430392446,0.002,2064.0,2063.6,2.25132353]
[1770430392747,0.002,2064.2,2063.8,2.25132353]
[1770430394945,0.002,2064.2,2063.9,1.21129899]
[1770430395129,0.002,2064.2,2064.0,2.25132353]
[1770430395724,0.002,2064.2,2063.9,0.60566352]
[1770430395931,0.002,2064.2,2064.0,2.25132353]
[1770430397126,0.002,2064.2,2064.1,3.46250515]
[1770430397531,0.002,2064.4,2064.2,2.25132353]
[1770430397750,0.002,2064.6,2064.4,2.25132353]
[1770430398445,0.002,2064.6,2064.3,0.34625052]
[1770430399526,0.002,2064.6,2064.3,1.55730704]
[1770430399726,0.002,2064.6,2064.2,1.21108718]
[1770430400324,0.002,2064.6,2063.9,0.60566352]
[1770430400325,0.002,2064.6,2063.9,1.81693836]
[1770430400636,0.002,2064.6,2063.9,0.60566352]
[1770430400833,2.12407607,2064.6,2063.4,2.25132353]
[1770430401059,2.12407607,2064.6,2063.4,3.46285879]
[1770430401060,2.12207607,2064.4,2063.4,3.46285879]
[1770430401243,1.21106428,2064.3,2063.5,1.21153222]
[1770430402563,3.33314035,2064.3,2063.4,1.21158703]
[1770430402760,0.82213171,2064.2,2063.4,1.21158703]
[1770430403530,1.21118162,2064.1,2063.3,4.8465575]
[1770430403753,1.21118162,2064.1,2063.3,1.21165123]
[1770430403953,1.2551012,2064.1,2063.2,3.46299606]
[1770430404157,1.2551012,2064.1,2063.1,4.84694943]
[1770430404158,3.37717727,2064.1,2063.1,1.21173202]
[1770430404371,0.69217959,2064.0,2063.1,1.21173202]
[1770430404537,2.81425566,2064.0,2063.1,1.21173202]
[1770430404960,2.81425566,2064.0,2063.0,1.21178314]
[1770430405349,2.81425566,2064.0,2063.1,1.21176515]
[1770430405563,1.21135768,2063.8,2062.9,3.46316321]
[1770430406972,1.21135768,2063.8,2063.0,2.25132353]
[1770430408371,1.21135768,2063.8,2063.2,0.001]
[1770430409277,2.12207607,2063.7,2063.2,0.001]
[1770430409451,0.04391958,2063.4,2062.8,2.11241232]
[1770430409643,0.04391958,2063.4,2062.8,0.001]
[1770430410547,1.21165123,2063.3,2062.8,0.001]
[1770430411571,1.21165123,2063.3,2062.5,0.001]
[1770430411572,2.16599565,2063.2,2062.5,0.001]
[1770430411873,0.33776469,2063.1,2062.5,0.001]
[1770430412676,1.54956797,2063.1,2062.5,0.001]
[1770430415086,1.59348755,2063.1,2062.5,0.001]
[1770430415960,1.54956797,2063.1,2062.5,0.001]
[1770430417396,3.58167496,2063.1,2062.5,0.001]
[1770430417686,0.84724661,2063.0,2062.5,0.001]
[1770430417994,2.07602657,2062.9,2062.5,0.001]
[1770430418158,2.07602657,2062.9,2062.3,9.357e-05]
[1770430419387,1.21194492,2062.8,2062.3,9.357e-05]
[1770430420075,1.21192484,2062.9,2062.3,9.357e-05]
[1770430420694,1.21392484,2062.9,2062.5,0.001]
[1770430420890,1.72030659,2062.9,2062.5,0.001]
[1770430421071,0.002,2062.9,2062.5,2.14032216]